[Event "*** Titled Tuesday Blitz"]
[Site "Chess.com"]
[Date "2020.11.03"]
[Round "7"]
[White "Meri-Arabidze"]
[Black "Jospem"]
[Result "0-1"]
[WhiteElo "2659"]
[BlackElo "2995"]
[TimeControl "180+1"]
[EndTime "11:22:15 PST"]
[Termination "Jospem won on time"]

1. Nf3 {[%clk 0:03:00.4]} 1... c5 {[%clk 0:02:55.6]} 2. b3 {[%clk 0:03:00.3]}
2... Nc6 {[%clk 0:02:55.6]} 3. Bb2 {[%clk 0:03:00.5]} 3... d5 {[%clk 0:02:49.9]}
4. e3 {[%clk 0:03:01.1]} 4... a6 {[%clk 0:02:47.8]} 5. d4 {[%clk 0:02:57.2]}
5... cxd4 {[%clk 0:02:47.9]} 6. exd4 {[%clk 0:02:57.3]} 6... Bg4 {[%clk
0:02:47.3]} 7. Bd3 {[%clk 0:02:54.9]} 7... Nf6 {[%clk 0:02:46.8]} 8. a3 {[%clk
0:02:54.1]} 8... e6 {[%clk 0:02:46.9]} 9. Nbd2 {[%clk 0:02:53.9]} 9... Bd6
{[%clk 0:02:46.6]} 10. h3 {[%clk 0:02:54.2]} 10... Bh5 {[%clk 0:02:46.2]} 11.
O-O {[%clk 0:02:54.2]} 11... Bg6 {[%clk 0:02:46.5]} 12. Qe2 {[%clk 0:02:49.3]}
12... Nh5 {[%clk 0:02:37.5]} 13. Bxg6 {[%clk 0:02:42.7]} 13... hxg6 {[%clk
0:02:34.1]} 14. Ne5 {[%clk 0:02:33.2]} 14... Bxe5 {[%clk 0:02:18.8]} 15. dxe5
{[%clk 0:02:32.8]} 15... Nf4 {[%clk 0:02:18.4]} 16. Qe3 {[%clk 0:02:01.1]} 16...
Qg5 {[%clk 0:02:07.6]} 17. g3 {[%clk 0:01:35.2]} 17... Nxh3+ {[%clk 0:01:58.3]}
18. Kg2 {[%clk 0:01:35.4]} 18... Qxe3 {[%clk 0:01:50]} 19. fxe3 {[%clk
0:01:36.3]} 19... Ng5 {[%clk 0:01:50.2]} 20. c4 {[%clk 0:01:36.6]} 20... Rd8
{[%clk 0:01:32.9]} 21. cxd5 {[%clk 0:01:35.9]} 21... Rxd5 {[%clk 0:01:26.2]} 22.
Nc4 {[%clk 0:01:36]} 22... b5 {[%clk 0:01:18.5]} 23. Nd6+ {[%clk 0:01:34.3]}
23... Ke7 {[%clk 0:01:17.8]} 24. Rad1 {[%clk 0:01:08.2]} 24... Rxe5 {[%clk
0:00:55.6]} 25. Bxe5 {[%clk 0:01:03]} 25... Nxe5 {[%clk 0:00:56.5]} 26. Rf4
{[%clk 0:00:49.8]} 26... f5 {[%clk 0:00:52.8]} 27. a4 {[%clk 0:00:36.5]} 27...
bxa4 {[%clk 0:00:34.1]} 28. Rxa4 {[%clk 0:00:35]} 28... Ng4 {[%clk 0:00:32]} 29.
Rxg4 {[%clk 0:00:33.2]} 29... fxg4 {[%clk 0:00:32.9]} 30. Nb7 {[%clk 0:00:22.4]}
30... Nf3 {[%clk 0:00:19.7]} 31. Rh1 {[%clk 0:00:22.1]} 31... Rc8 {[%clk
0:00:19.4]} 32. Ra1 {[%clk 0:00:16.6]} 32... Rc2+ {[%clk 0:00:18.1]} 33. Kf1
{[%clk 0:00:17.2]} 33... Nd2+ {[%clk 0:00:09.1]} 34. Kg1 {[%clk 0:00:17.4]}
34... Nf3+ {[%clk 0:00:07.4]} 35. Kf1 {[%clk 0:00:16.8]} 35... Rc6 {[%clk
0:00:08.2]} 36. b4 {[%clk 0:00:15.8]} 36... Rb6 {[%clk 0:00:07.6]} 37. Nc5
{[%clk 0:00:15.9]} 37... Rxb4 {[%clk 0:00:07.8]} 38. Rxa6 {[%clk 0:00:15.9]}
38... Ng5 {[%clk 0:00:04.4]} 39. Ra7+ {[%clk 0:00:14.7]} 39... Kd6 {[%clk
0:00:05]} 40. Nd3 {[%clk 0:00:13]} 40... Rb1+ {[%clk 0:00:04]} 41. Ke2 {[%clk
0:00:13.2]} 41... Ne4 {[%clk 0:00:04.1]} 42. Rxg7 {[%clk 0:00:12.5]} 42... Nxg3+
{[%clk 0:00:04.5]} 43. Kd2 {[%clk 0:00:12.5]} 43... Ne4+ {[%clk 0:00:04.6]} 44.
Kc2 {[%clk 0:00:12.9]} 44... Rg1 {[%clk 0:00:04.2]} 45. Rxg6 {[%clk 0:00:12.9]}
45... Rg2+ {[%clk 0:00:04.9]} 46. Kb3 {[%clk 0:00:10.7]} 46... Rg3 {[%clk
0:00:05.5]} 47. Kc4 {[%clk 0:00:08.5]} 47... Rxe3 {[%clk 0:00:02.9]} 48. Rxg4
{[%clk 0:00:08.2]} 48... Nf6 {[%clk 0:00:02.6]} 49. Rd4+ {[%clk 0:00:07.5]}
49... Nd5 {[%clk 0:00:02.7]} 50. Nb4 {[%clk 0:00:02.8]} 50... Rc3+ {[%clk
0:00:02.9]} 51. Kb5 {[%clk 0:00:03]} 51... Rc5+ {[%clk 0:00:03]} 52. Ka4 {[%clk
0:00:02.7]} 52... Ke5 {[%clk 0:00:03.5]} 53. Rd1 {[%clk 0:00:02.2]} 53... Rc4
{[%clk 0:00:03.7]} 54. Re1+ {[%clk 0:00:02.6]} 54... Kf5 {[%clk 0:00:03.7]} 55.
Rf1+ {[%clk 0:00:02.7]} 55... Kg6 {[%clk 0:00:03.8]} 56. Rg1+ {[%clk 0:00:01.5]}
56... Kf6 {[%clk 0:00:04.3]} 57. Rf1+ {[%clk 0:00:01.6]} 57... Ke7 {[%clk
0:00:04.5]} 58. Rb1 {[%clk 0:00:01.9]} 58... Rxb4+ {[%clk 0:00:04.2]} 59. Rxb4
{[%clk 0:00:01.4]} 59... Nxb4 {[%clk 0:00:05.1]} 60. Kxb4 {[%clk 0:00:02.3]}
60... Kd6 {[%clk 0:00:06]} 61. Kc4 {[%clk 0:00:02.8]} 61... Ke5 {[%clk
0:00:06.9]} 62. Kd3 {[%clk 0:00:03.2]} 62... Kf4 {[%clk 0:00:07.5]} 0-1

[Event "*** Titled Tuesday Blitz"]
[Site "Chess.com"]
[Date "2020.11.03"]
[Round "7"]
[White "enriquetejedor"]
[Black "sjam6687"]
[Result "1-0"]
[WhiteElo "2505"]
[BlackElo "2699"]
[TimeControl "180+1"]
[EndTime "11:22:32 PST"]
[Termination "enriquetejedor won by resignation"]

1. e4 {[%clk 0:03:00.9]} 1... e5 {[%clk 0:03:00]} 2. d4 {[%clk 0:03:00.7]} 2...
exd4 {[%clk 0:02:58.8]} 3. Nf3 {[%clk 0:03:00.9]} 3... Nc6 {[%clk 0:02:58.2]} 4.
Nxd4 {[%clk 0:03:00.8]} 4... Bc5 {[%clk 0:02:55]} 5. Nf5 {[%clk 0:02:52.4]} 5...
g6 {[%clk 0:02:29.6]} 6. Be3 {[%clk 0:02:44.4]} 6... Bxe3 {[%clk 0:02:16.4]} 7.
Nxe3 {[%clk 0:02:39.4]} 7... Nf6 {[%clk 0:02:16.9]} 8. Nc3 {[%clk 0:02:38.6]}
8... O-O {[%clk 0:02:13.2]} 9. Bd3 {[%clk 0:02:35.8]} 9... Re8 {[%clk
0:02:10.9]} 10. O-O {[%clk 0:02:33.6]} 10... d6 {[%clk 0:02:11.3]} 11. Re1
{[%clk 0:02:28.8]} 11... Nb4 {[%clk 0:01:57.9]} 12. Rc1 {[%clk 0:02:14.1]} 12...
Nxd3 {[%clk 0:01:52.9]} 13. cxd3 {[%clk 0:02:13.7]} 13... c6 {[%clk 0:01:53.4]}
14. f3 {[%clk 0:02:13.3]} 14... d5 {[%clk 0:01:44.8]} 15. Ne2 {[%clk 0:01:23.7]}
15... Qb6 {[%clk 0:01:40.6]} 16. Qd2 {[%clk 0:01:20.6]} 16... dxe4 {[%clk
0:01:09.3]} 17. dxe4 {[%clk 0:01:12.6]} 17... Be6 {[%clk 0:01:09.6]} 18. b3
{[%clk 0:01:12.7]} 18... Rad8 {[%clk 0:01:07.8]} 19. Qc3 {[%clk 0:01:12.1]}
19... Bc8 {[%clk 0:01:01.9]} 20. Kh1 {[%clk 0:01:11]} 20... Nh5 {[%clk
0:00:52.7]} 21. Rc2 {[%clk 0:01:04.2]} 21... Qc7 {[%clk 0:00:44.2]} 22. Nd5
{[%clk 0:01:01.3]} 22... Qd6 {[%clk 0:00:42.3]} 23. Ne3 {[%clk 0:01:00.1]} 23...
Qd3 {[%clk 0:00:37.3]} 24. Qxd3 {[%clk 0:00:59.8]} 24... Rxd3 {[%clk 0:00:38.2]}
25. Nc1 {[%clk 0:01:00.2]} 25... Rdd8 {[%clk 0:00:35.3]} 26. Kg1 {[%clk
0:00:59.3]} 26... Nf4 {[%clk 0:00:33.9]} 27. Kf2 {[%clk 0:00:56.4]} 27... Ne6
{[%clk 0:00:32.8]} 28. Ne2 {[%clk 0:00:53.3]} 28... Rd3 {[%clk 0:00:32.3]} 29.
Rd1 {[%clk 0:00:49.5]} 29... Rxd1 {[%clk 0:00:29.2]} 30. Nxd1 {[%clk 0:00:50.4]}
30... Rd8 {[%clk 0:00:29.3]} 31. Nb2 {[%clk 0:00:50.6]} 31... c5 {[%clk
0:00:25.8]} 32. Na4 {[%clk 0:00:49]} 32... b6 {[%clk 0:00:25.9]} 33. Nac3 {[%clk
0:00:49.5]} 33... Bb7 {[%clk 0:00:24.6]} 34. Nb5 {[%clk 0:00:47.8]} 34... a6
{[%clk 0:00:23.2]} 35. Nbc3 {[%clk 0:00:48.3]} 35... Bc6 {[%clk 0:00:23.1]} 36.
Ke3 {[%clk 0:00:45.9]} 36... Kg7 {[%clk 0:00:22.8]} 37. h4 {[%clk 0:00:44.3]}
37... Kf6 {[%clk 0:00:22.2]} 38. g3 {[%clk 0:00:44.3]} 38... Ke7 {[%clk
0:00:21.4]} 39. h5 {[%clk 0:00:43.2]} 39... gxh5 {[%clk 0:00:19.8]} 40. Rc1
{[%clk 0:00:42.7]} 40... Nd4 {[%clk 0:00:17.7]} 41. Rh1 {[%clk 0:00:40.1]} 41...
Nxe2 {[%clk 0:00:17.2]} 42. Nxe2 {[%clk 0:00:39.5]} 42... Bb5 {[%clk 0:00:12.4]}
43. Nf4 {[%clk 0:00:39.6]} 43... c4 {[%clk 0:00:12.5]} 44. Nd5+ {[%clk
0:00:34.7]} 44... Kf8 {[%clk 0:00:12.2]} 45. a4 {[%clk 0:00:30.6]} 45... Bc6
{[%clk 0:00:10.7]} 46. bxc4 {[%clk 0:00:31.1]} 46... b5 {[%clk 0:00:08.5]} 47.
axb5 {[%clk 0:00:31]} 47... axb5 {[%clk 0:00:09.4]} 48. cxb5 {[%clk 0:00:25.6]}
48... Bxb5 {[%clk 0:00:09.3]} 49. Rxh5 {[%clk 0:00:23.7]} 49... Kg7 {[%clk
0:00:09.6]} 50. Ne7 {[%clk 0:00:18.8]} 50... Ba6 {[%clk 0:00:06.2]} 51. Nf5+
{[%clk 0:00:18]} 51... Kg8 {[%clk 0:00:06.2]} 52. Rg5+ {[%clk 0:00:17.4]} 52...
Kf8 {[%clk 0:00:06]} 53. Nh6 {[%clk 0:00:16.1]} 53... Rd3+ {[%clk 0:00:05.5]}
54. Kf4 {[%clk 0:00:16.6]} 54... Ra3 {[%clk 0:00:05.9]} 55. Rg8+ {[%clk
0:00:16.8]} 55... Ke7 {[%clk 0:00:06]} 56. Nf5+ {[%clk 0:00:17.7]} 56... Kf6
{[%clk 0:00:03.6]} 57. e5+ {[%clk 0:00:08.6]} 57... Ke6 {[%clk 0:00:03]} 58.
Re8+ {[%clk 0:00:09.5]} 58... Kd5 {[%clk 0:00:02.2]} 59. Rd8+ {[%clk 0:00:09.8]}
59... Kc6 {[%clk 0:00:01.9]} 60. Rd6+ {[%clk 0:00:08.2]} 60... Kb7 {[%clk
0:00:02.2]} 61. Rf6 {[%clk 0:00:07.9]} 61... Ra4+ {[%clk 0:00:03.1]} 62. Kg5
{[%clk 0:00:07.8]} 62... Bc4 {[%clk 0:00:03.1]} 63. Nd6+ {[%clk 0:00:07.7]}
63... Kb8 {[%clk 0:00:03.3]} 64. Rf4 {[%clk 0:00:07.7]} 64... Bb3 {[%clk
0:00:03]} 65. Rxa4 {[%clk 0:00:07.9]} 65... Bxa4 {[%clk 0:00:03.9]} 66. Nxf7
{[%clk 0:00:08.4]} 66... Kc7 {[%clk 0:00:04.3]} 67. Kf6 {[%clk 0:00:07]} 67...
Bd1 {[%clk 0:00:03.4]} 68. f4 {[%clk 0:00:07.2]} 68... Bg4 {[%clk 0:00:02.9]}
69. f5 {[%clk 0:00:07.5]} 1-0

[Event "*** Titled Tuesday Blitz"]
[Site "Chess.com"]
[Date "2020.11.03"]
[Round "7"]
[White "tdf98pantani"]
[Black "kuban1991"]
[Result "1/2-1/2"]
[WhiteElo "2722"]
[BlackElo "2897"]
[TimeControl "180+1"]
[EndTime "11:22:35 PST"]
[Termination "Game drawn - insufficient material"]

1. e4 {[%clk 0:03:00.9]} 1... e6 {[%clk 0:02:59.8]} 2. d4 {[%clk 0:03:00.5]}
2... d5 {[%clk 0:03:00]} 3. Nd2 {[%clk 0:03:00.8]} 3... c5 {[%clk 0:02:59.8]} 4.
exd5 {[%clk 0:03:00.6]} 4... exd5 {[%clk 0:03:00.7]} 5. Ngf3 {[%clk 0:03:00.8]}
5... Nc6 {[%clk 0:03:01.3]} 6. Bb5 {[%clk 0:03:00.8]} 6... Bd6 {[%clk
0:03:01.6]} 7. dxc5 {[%clk 0:03:00.8]} 7... Bxc5 {[%clk 0:03:02.5]} 8. O-O
{[%clk 0:03:00.9]} 8... Ne7 {[%clk 0:03:02.7]} 9. Nb3 {[%clk 0:03:01]} 9... Bb6
{[%clk 0:03:03.3]} 10. Re1 {[%clk 0:03:00.4]} 10... O-O {[%clk 0:03:03.1]} 11.
h3 {[%clk 0:03:00.3]} 11... Bf5 {[%clk 0:03:00.9]} 12. Bd3 {[%clk 0:02:58.6]}
12... Qd7 {[%clk 0:02:44.8]} 13. c3 {[%clk 0:02:52]} 13... Bxd3 {[%clk
0:02:37.6]} 14. Qxd3 {[%clk 0:02:51.7]} 14... Nf5 {[%clk 0:02:37.6]} 15. Bf4
{[%clk 0:02:46.3]} 15... Rad8 {[%clk 0:02:30.8]} 16. Rad1 {[%clk 0:02:45.6]}
16... Qc8 {[%clk 0:01:54.9]} 17. Ne5 {[%clk 0:02:41.6]} 17... Nfe7 {[%clk
0:01:48.8]} 18. Bg5 {[%clk 0:02:29.2]} 18... f6 {[%clk 0:01:44.1]} 19. Nxc6
{[%clk 0:02:29.3]} 19... Nxc6 {[%clk 0:01:45]} 20. Bf4 {[%clk 0:02:25.6]} 20...
a6 {[%clk 0:01:20.7]} 21. Re2 {[%clk 0:02:20.7]} 21... Ba7 {[%clk 0:01:16.1]}
22. Red2 {[%clk 0:01:29.1]} 22... Ne5 {[%clk 0:01:14.9]} 23. Qg3 {[%clk
0:01:28.8]} 23... Qe6 {[%clk 0:01:04.3]} 24. Nd4 {[%clk 0:01:23.2]} 24... Bxd4
{[%clk 0:01:03.3]} 25. Rxd4 {[%clk 0:01:24.1]} 25... Nc6 {[%clk 0:00:57.7]} 26.
R4d2 {[%clk 0:01:23]} 26... Rd7 {[%clk 0:00:51.7]} 27. Qf3 {[%clk 0:01:15.5]}
27... Rfd8 {[%clk 0:00:51.4]} 28. Re2 {[%clk 0:01:14.8]} 28... Qf7 {[%clk
0:00:51.6]} 29. Be3 {[%clk 0:01:11.6]} 29... Ne5 {[%clk 0:00:49.7]} 30. Qg3
{[%clk 0:01:11.4]} 30... Qg6 {[%clk 0:00:47.2]} 31. Qxg6 {[%clk 0:01:04.8]}
31... hxg6 {[%clk 0:00:48.1]} 32. Bb6 {[%clk 0:01:04.8]} 32... Rc8 {[%clk
0:00:47.6]} 33. Bd4 {[%clk 0:00:57.5]} 33... Nc6 {[%clk 0:00:44.3]} 34. g4
{[%clk 0:00:56.5]} 34... Kf7 {[%clk 0:00:44.5]} 35. Kg2 {[%clk 0:00:54.9]} 35...
Re8 {[%clk 0:00:45]} 36. Red2 {[%clk 0:00:53.5]} 36... g5 {[%clk 0:00:44.8]} 37.
Be3 {[%clk 0:00:49.5]} 37... Re5 {[%clk 0:00:33.2]} 38. c4 {[%clk 0:00:46.5]}
38... d4 {[%clk 0:00:19.9]} 39. Bxd4 {[%clk 0:00:46.5]} 39... Re4 {[%clk
0:00:19]} 40. Bc3 {[%clk 0:00:39.8]} 40... Rxd2 {[%clk 0:00:15]} 41. Rxd2 {[%clk
0:00:40.7]} 41... Ke6 {[%clk 0:00:14.5]} 42. b3 {[%clk 0:00:40.4]} 42... b5
{[%clk 0:00:14.1]} 43. cxb5 {[%clk 0:00:38.7]} 43... axb5 {[%clk 0:00:15]} 44.
Kf3 {[%clk 0:00:37.1]} 44... Rf4+ {[%clk 0:00:14.2]} 45. Ke3 {[%clk 0:00:37.4]}
45... b4 {[%clk 0:00:13.7]} 46. Bb2 {[%clk 0:00:36.3]} 46... Ne7 {[%clk
0:00:14]} 47. Rd4 {[%clk 0:00:34.6]} 47... Nd5+ {[%clk 0:00:13]} 48. Ke2 {[%clk
0:00:35]} 48... Kd6 {[%clk 0:00:09.4]} 49. Rxf4 {[%clk 0:00:25.5]} 49... Nxf4+
{[%clk 0:00:10.3]} 50. Kf3 {[%clk 0:00:25.6]} 50... Nxh3 {[%clk 0:00:09.4]} 51.
Bc1 {[%clk 0:00:24.8]} 51... Kd5 {[%clk 0:00:07.5]} 52. Bd2 {[%clk 0:00:24.7]}
52... Kc5 {[%clk 0:00:04.9]} 53. Be3+ {[%clk 0:00:20.2]} 53... Kd5 {[%clk
0:00:04.7]} 54. Bd2 {[%clk 0:00:19.7]} 54... Kc5 {[%clk 0:00:04.9]} 55. Kg2
{[%clk 0:00:11.3]} 55... Nf4+ {[%clk 0:00:05.1]} 56. Kf3 {[%clk 0:00:09.1]}
56... Nd5 {[%clk 0:00:04.2]} 57. Ke4 {[%clk 0:00:09.2]} 57... g6 {[%clk
0:00:03.8]} 58. Kd3 {[%clk 0:00:06.6]} 58... Ne7 {[%clk 0:00:02.8]} 59. Be3+
{[%clk 0:00:06.9]} 59... Kb5 {[%clk 0:00:02.9]} 60. Bd4 {[%clk 0:00:07.3]} 60...
Nd5 {[%clk 0:00:02.7]} 61. Bb2 {[%clk 0:00:06.7]} 61... f5 {[%clk 0:00:02.5]}
62. Kd4 {[%clk 0:00:06.5]} 62... Nf4 {[%clk 0:00:02.8]} 63. gxf5 {[%clk
0:00:05.7]} 63... gxf5 {[%clk 0:00:03.7]} 64. f3 {[%clk 0:00:03.9]} 64... Ne2+
{[%clk 0:00:03.3]} 65. Ke5 {[%clk 0:00:03.1]} 65... g4 {[%clk 0:00:02.6]} 66.
fxg4 {[%clk 0:00:02.3]} 66... fxg4 {[%clk 0:00:03.5]} 67. Ke4 {[%clk 0:00:02.8]}
67... g3 {[%clk 0:00:03.6]} 68. Kf3 {[%clk 0:00:03.2]} 68... Nc3 {[%clk
0:00:04.5]} 69. a4+ {[%clk 0:00:02.7]} 69... bxa3 {[%clk 0:00:03.9]} 70. Bxc3
{[%clk 0:00:02.8]} 70... a2 {[%clk 0:00:03.7]} 71. Kxg3 {[%clk 0:00:03.3]} 71...
a1=Q {[%clk 0:00:04]} 72. Bxa1 {[%clk 0:00:03.6]} 72... Kb4 {[%clk 0:00:04.9]}
73. Kf3 {[%clk 0:00:03.8]} 73... Kxb3 {[%clk 0:00:05.8]} 1/2-1/2

[Event "*** Titled Tuesday Blitz"]
[Site "Chess.com"]
[Date "2020.11.03"]
[Round "7"]
[White "Alomaterapia"]
[Black "Nikolakis2014"]
[Result "0-1"]
[WhiteElo "2526"]
[BlackElo "2742"]
[TimeControl "180+1"]
[EndTime "11:22:36 PST"]
[Termination "Nikolakis2014 won by resignation"]

1. e4 {[%clk 0:03:00.9]} 1... c6 {[%clk 0:02:59.4]} 2. d4 {[%clk 0:03:00.4]}
2... d5 {[%clk 0:02:59.5]} 3. e5 {[%clk 0:03:01]} 3... Bf5 {[%clk 0:02:59]} 4.
Nf3 {[%clk 0:03:00.4]} 4... e6 {[%clk 0:02:58.7]} 5. Be2 {[%clk 0:03:01.1]} 5...
Ne7 {[%clk 0:02:58.1]} 6. O-O {[%clk 0:02:59.3]} 6... c5 {[%clk 0:02:58.1]} 7.
Na3 {[%clk 0:02:48.2]} 7... Be4 {[%clk 0:02:51]} 8. c4 {[%clk 0:02:40.1]} 8...
Nf5 {[%clk 0:02:38.4]} 9. cxd5 {[%clk 0:01:57.2]} 9... Bxd5 {[%clk 0:02:35.9]}
10. Bg5 {[%clk 0:01:52]} 10... Be7 {[%clk 0:02:23.9]} 11. Bxe7 {[%clk
0:01:51.9]} 11... Qxe7 {[%clk 0:02:23.9]} 12. dxc5 {[%clk 0:01:52.2]} 12... O-O
{[%clk 0:02:23.4]} 13. Rc1 {[%clk 0:01:21.4]} 13... Nd7 {[%clk 0:02:06.7]} 14.
Bc4 {[%clk 0:01:06.8]} 14... Bxf3 {[%clk 0:02:03.6]} 15. Qxf3 {[%clk 0:01:06.2]}
15... Nxe5 {[%clk 0:02:03.6]} 16. Qe4 {[%clk 0:00:56.5]} 16... Nc6 {[%clk
0:01:43.5]} 17. Bd3 {[%clk 0:00:42.7]} 17... Rad8 {[%clk 0:01:40.9]} 18. Nb5
{[%clk 0:00:40.4]} 18... Qf6 {[%clk 0:01:04.2]} 19. Nd6 {[%clk 0:00:26.3]} 19...
Ne5 {[%clk 0:01:00.5]} 20. Bb1 {[%clk 0:00:23.7]} 20... g6 {[%clk 0:00:58.9]}
21. Rfd1 {[%clk 0:00:22.2]} 21... b6 {[%clk 0:00:53.4]} 22. Nxf5 {[%clk
0:00:19.8]} 22... exf5 {[%clk 0:00:51.1]} 23. Qe1 {[%clk 0:00:13.6]} 23... Rxd1
{[%clk 0:00:39.4]} 24. Qxd1 {[%clk 0:00:14]} 24... Rd8 {[%clk 0:00:36.3]} 25.
Qa4 {[%clk 0:00:14.1]} 25... bxc5 {[%clk 0:00:35.1]} 26. Rxc5 {[%clk 0:00:14.1]}
26... Ng4 {[%clk 0:00:33.6]} 27. h3 {[%clk 0:00:10.2]} 27... Qxb2 {[%clk
0:00:18.6]} 28. Qc2 {[%clk 0:00:09.5]} 28... Qxc2 {[%clk 0:00:15]} 29. Bxc2
{[%clk 0:00:10]} 29... Nf6 {[%clk 0:00:15.4]} 30. Bb3 {[%clk 0:00:10.4]} 30...
Rd7 {[%clk 0:00:15.3]} 31. Ra5 {[%clk 0:00:10.3]} 31... Kg7 {[%clk 0:00:15.6]}
32. f3 {[%clk 0:00:10.7]} 32... Nh5 {[%clk 0:00:15.6]} 33. Kf2 {[%clk
0:00:10.9]} 33... f4 {[%clk 0:00:15.9]} 34. Ra6 {[%clk 0:00:10.6]} 34... Rd2+
{[%clk 0:00:16]} 35. Kg1 {[%clk 0:00:10.1]} 35... Rd7 {[%clk 0:00:16.6]} 36. Ra4
{[%clk 0:00:10.1]} 36... Rc7 {[%clk 0:00:16.3]} 37. Kf2 {[%clk 0:00:08.9]} 37...
h6 {[%clk 0:00:16.6]} 38. Ra5 {[%clk 0:00:08.1]} 38... g5 {[%clk 0:00:16.7]} 39.
Ra4 {[%clk 0:00:07.5]} 39... Ng3 {[%clk 0:00:16.9]} 40. Rc4 {[%clk 0:00:07.9]}
40... Rd7 {[%clk 0:00:17.1]} 41. Rc2 {[%clk 0:00:08.1]} 41... f5 {[%clk
0:00:16.3]} 42. Rb2 {[%clk 0:00:07.5]} 42... h5 {[%clk 0:00:16.6]} 43. Bc4
{[%clk 0:00:07.4]} 43... h4 {[%clk 0:00:16.5]} 44. Ba6 {[%clk 0:00:06.2]} 44...
Kf6 {[%clk 0:00:16.7]} 45. Rb3 {[%clk 0:00:03.2]} 45... Ke5 {[%clk 0:00:14.9]}
46. Rb2 {[%clk 0:00:03]} 46... Rd4 {[%clk 0:00:14.6]} 47. Bb5 {[%clk 0:00:03]}
47... Rd5 {[%clk 0:00:13.9]} 48. Ba6 {[%clk 0:00:03.1]} 48... Kd4 {[%clk
0:00:13.5]} 49. Rd2+ {[%clk 0:00:02.9]} 49... Kc5 {[%clk 0:00:13.5]} 50. Rxd5+
{[%clk 0:00:03.4]} 50... Kxd5 {[%clk 0:00:13.6]} 51. Bc8 {[%clk 0:00:03.7]}
51... Kd4 {[%clk 0:00:13.9]} 52. Bd7 {[%clk 0:00:03]} 52... Kc3 {[%clk
0:00:13.9]} 53. Bc8 {[%clk 0:00:03.5]} 53... a5 {[%clk 0:00:14.1]} 54. Be6
{[%clk 0:00:03.7]} 54... a4 {[%clk 0:00:13.8]} 55. Bg8 {[%clk 0:00:04.3]} 55...
a3 {[%clk 0:00:13.8]} 56. Bf7 {[%clk 0:00:04.8]} 56... Kd2 {[%clk 0:00:13.6]}
57. Be6 {[%clk 0:00:04.5]} 57... Kc3 {[%clk 0:00:13]} 58. Bf7 {[%clk 0:00:05]}
58... Kd2 {[%clk 0:00:13]} 59. Be6 {[%clk 0:00:05.4]} 59... Ne2 {[%clk
0:00:13.2]} 60. Bxf5 {[%clk 0:00:04.8]} 60... Nc3 {[%clk 0:00:13.8]} 61. Be6
{[%clk 0:00:04.8]} 61... Kc2 {[%clk 0:00:14.2]} 62. Ke1 {[%clk 0:00:05.2]} 62...
Kb2 {[%clk 0:00:14.7]} 63. Kd2 {[%clk 0:00:05.7]} 63... Nb1+ {[%clk 0:00:09.8]}
64. Kd3 {[%clk 0:00:05.4]} 64... Nc3 {[%clk 0:00:10]} 65. Kd2 {[%clk 0:00:05.6]}
65... Na4 {[%clk 0:00:08]} 66. Kd3 {[%clk 0:00:05.7]} 66... Nc5+ {[%clk
0:00:07.9]} 67. Kd4 {[%clk 0:00:05.7]} 67... Nxe6+ {[%clk 0:00:08.5]} 68. Ke5
{[%clk 0:00:06.6]} 68... Kxa2 {[%clk 0:00:08.6]} 69. Kxe6 {[%clk 0:00:07.1]}
69... Kb3 {[%clk 0:00:09.2]} 70. Kf5 {[%clk 0:00:08]} 70... a2 {[%clk
0:00:09.8]} 71. Kxg5 {[%clk 0:00:08.9]} 71... a1=Q {[%clk 0:00:10.5]} 72. Kxh4
{[%clk 0:00:09.8]} 72... Qd4 {[%clk 0:00:10.5]} 73. Kg4 {[%clk 0:00:10.7]} 73...
Kc4 {[%clk 0:00:10.9]} 74. h4 {[%clk 0:00:11.6]} 74... Kd5 {[%clk 0:00:11.5]}
75. h5 {[%clk 0:00:12.5]} 75... Ke6 {[%clk 0:00:12]} 76. Kg5 {[%clk 0:00:13.4]}
76... Kf7 {[%clk 0:00:12.2]} 77. h6 {[%clk 0:00:14.3]} 77... Qf6+ {[%clk
0:00:12.3]} 78. Kg4 {[%clk 0:00:14.5]} 78... Qxh6 {[%clk 0:00:12.1]} 79. Kf5
{[%clk 0:00:14.5]} 79... Qf6+ {[%clk 0:00:12.5]} 80. Ke4 {[%clk 0:00:15.4]}
80... Qg6+ {[%clk 0:00:12.9]} 81. Kxf4 {[%clk 0:00:15.5]} 81... Qxg2 {[%clk
0:00:13.5]} 82. Ke3 {[%clk 0:00:16.1]} 82... Kf6 {[%clk 0:00:13.8]} 83. f4
{[%clk 0:00:17]} 83... Qg3+ {[%clk 0:00:14.1]} 0-1